Cogmind - Beta 14 @@@ ROGUE MODE // 2024.12.28 @ 12:54:00 Player: yua241 Result: Destroyed by 8R-AWN with 8R-AWN's Boregun Performance ------------- Evolutions (1) 500 Regions Visited (5) 1000 Robots Destroyed (28) 140 Value Destroyed (664) 664 Prototype IDs (0) 0 Alien Tech Used (0) 0 Bonus (0) 0 TOTAL SCORE: 2304 Bonus ------- None Cogmind --------- Core Integrity 0/400 Matter 300/300 Energy 100/100 System Corruption 14% Temperature Cool (0) Movement Core (100) Ox1 Location -9/Exiles Parts ------- > --- POWER (1) -------- (None) > --- PROPULSION (4) --- (None) > --- UTILITY (2) ------ Small Storage Unit > --- WEAPON (2) ------- (None) > --- INVENTORY (8) ---- Ion Engine Reinforced Deuterium Engine Aluminum Leg Aluminum Leg Signal Interpreter Seismic Detector Light Armor Plating Grenade Launcher Peak State ------------ > --- POWER ------------ Light Ion Engine > --- PROPULSION ------- Aluminum Leg Aluminum Leg Aluminum Leg Aluminum Leg > --- UTILITY ---------- Small Storage Unit Medium Armor Plating > --- WEAPON ----------- Light Assault Rifle Light Assault Rifle > --- INVENTORY -------- Ion Engine Reinforced Deuterium Engine Aluminum Leg Aluminum Leg Signal Interpreter Seismic Detector Light Armor Plating Grenade Launcher [Rating: 11] Favorites ----------- Power Ion Engine Engine Ion Engine Propulsion Aluminum Leg Leg Aluminum Leg Utility Small Storage Unit Storage Small Storage Unit Protection Medium Armor Plating Weapon Light Assault Rifle Energy Gun EM Pulse Gun Ballistic Gun Light Assault Rifle Build | -11 -10 -10 -9 -9 -9 ------- Run | Yrd Mat Min Mat Min Exi Slots Evolved 2 | . . . 2 . . Power . | . . . . . . Propulsion 2 | . . . 2 . . Utility . | . . . . . . Weapon . | . . . . . . Parts Attached 20 | 5 2 1 5 7 . Power 3 | 1 . . 1 1 . Engine 3 | 1 . . 1 1 . Core . | . . . . . . Reactor . | . . . . . . Propulsion 7 | 1 1 . 1 4 . Treads . | . . . . . . Leg 7 | 1 1 . 1 4 . Wheel . | . . . . . . Hover . | . . . . . . Flight . | . . . . . . Utility 3 | 1 1 . . 1 . Device . | . . . . . . Storage 2 | 1 1 . . . . Processor . | . . . . . . Hackware . | . . . . . . Protection 1 | . . . . 1 . Artifact . | . . . . . . Weapon 7 | 2 . 1 3 1 . Energy Gun 2 | 1 . . 1 . . Energy Cannon . | . . . . . . Ballistic Gun 5 | 1 . 1 2 1 . Ballistic Cannon . | . . . . . . Launcher . | . . . . . . Special Weapon . | . . . . . . Impact Weapon . | . . . . . . Slashing Weapon . | . . . . . . Piercing Weapon . | . . . . . . Special Melee Weapon . | . . . . . . Unidentified Prototypes . | . . . . . . Parts Lost 18 | . . . 6 4 8 Power 3 | . . . 1 1 1 Propulsion 7 | . . . 2 1 4 Utility 2 | . . . . 1 1 Weapon 6 | . . . 3 1 2 Highest Loss Streak 8 | . . . 2 2 8 To Critical Strikes 2 | . . . . 1 1 Average Slot Usage (%) 78 | . 80 99 69 80 92 Engine 11 | . 14 14 10 10 10 Leg 22 | . 18 28 15 27 40 Storage 20 | . 19 28 22 17 11 Protection 1 | . . . . 3 10 Energy Gun 5 | . 14 7 . 6 . Ballistic Gun 18 | . 14 19 20 15 21 Peak Build Rating 11 | 5 7 7 8 10 11 Average Rating 7 | 3 5 6 6 8 10 On Entrance 6 | . 5 7 7 7 10 Naked Turns . | . . . . . . Heaviest Build 17 | 14 16 16 16 17 17 Greatest Support 40 | 10 20 20 20 40 40 Greatest Overweight (x) 4 | 1 1 . 1 4 . Average Overweight (x) . | . . . . . . Largest Inventory Capacity 8 | 8 8 8 8 8 8 Average Capacity 7 | 6 8 8 8 8 8 Most Carried 8 | 4 7 8 8 8 8 Average Carried 6 | 2 4 7 7 7 7 Final Capacity 8 | 8 8 8 8 8 8 Final Carried 8 | 3 6 8 8 7 8 Class Distribution -------------------- 72% | Mutant 27% | Scavenger-Mutant Dominant Class ---------------- Mutant | -10/Materials Mutant | -10/Mines Mutant | -9/Materials Scavenger-Mutant | -9/Mines Scavenger-Mutant | -9/Exiles Resources | -11 -10 -10 -9 -9 -9 ----------- Run | Yrd Mat Min Mat Min Exi Matter Collected 718 | 163 166 84 222 83 . Remotely . | . . . . . . Salvage Created 839 | . 178 84 335 242 . Parts 61 | . 17 12 18 14 . Haulers Intercepted . | . . . . . . Recyclers Shooed 1 | . . . 1 . . Parts Field Recycled . | . . . . . . Retrieved Matter . | . . . . . . Parts Self-Destructed . | . . . . . . Prevented . | . . . . . . Kills | -11 -10 -10 -9 -9 -9 ------- Run | Yrd Mat Min Mat Min Exi Combat Hostiles Destroyed 27 | . 8 5 9 5 . Guns 27 | . 8 5 9 5 . Classes Destroyed 5 | . 3 . 1 1 . Watcher 1 | . 1 . . . . Swarmer 15 | . 6 5 4 . . Grunt 6 | . 2 . . 4 . Brawler 1 | . . . . 1 . Sentry 5 | . . . 5 . . Best Kill Streak 8 | . 8 3 4 3 . Combat Bots Only 7 | . 7 3 4 3 . Max Kills in Single Turn 1 | . 1 1 1 1 . Gunslinging . | . . . . . . Exploded . | . . . . . . Melee . | . . . . . . Uniques/NPCs Destroyed . | . . . . . . Combat | -11 -10 -10 -9 -9 -9 -------- Run | Yrd Mat Min Mat Min Exi Hostile Shots Fired 190 | . 17 13 78 29 53 Missed 49 | . 8 3 19 4 15 Damage Taken 2028 | . 128 82 743 369 706 Core 477 | . 43 25 154 77 178 Absorbed by Shields . | . . . . . . Core Remaining (%) 86 | 100 . 72 . . . Volleys Fired 101 | . 18 9 48 21 5 Largest 2 | . 2 2 2 2 2 Hottest 76 | . 60 60 43 76 40 Shots Fired 183 | . 36 18 82 39 8 Gun 183 | . 36 18 82 39 8 Cannon . | . . . . . . Launcher . | . . . . . . Special . | . . . . . . Kinetic 144 | . 18 11 82 25 8 Thermal 14 | . . . . 14 . Explosive . | . . . . . . Electromagnetic 25 | . 18 7 . . . Robot Hit Streak 13 | . 7 3 13 7 . Robot Miss Streak 6 | . 2 2 6 4 2 Penetration Max . | . . . . . . Secondary Targets 3 | . . 1 1 1 . Max Gunslinging Chain 1 | . . 1 1 1 . Shots Hit Robots 106 | . 21 9 50 26 . Core Hits 49 | . 11 5 19 13 1 Critical Kills 1 | . . . 1 . . Critical Parts Destroyed 1 | . . . 1 . . Critical Strikes 3 | . . . 2 1 . Burn 1 | . . . . 1 . Destroy 2 | . . . 2 . . Melee Attacks . | . . . . . . Impact . | . . . . . . Slashing . | . . . . . . Piercing . | . . . . . . Sneak Attacks . | . . . . . . Combat Hostiles . | . . . . . . Follow-up Attacks . | . . . . . . Damage Inflicted 1012 | . 286 94 343 266 23 Guns 1012 | . 286 94 343 266 23 Cannons . | . . . . . . Explosions . | . . . . . . Melee . | . . . . . . Ramming . | . . . . . . Kinetic 664 | . 124 51 343 123 23 Thermal 143 | . . . . 143 . Explosive . | . . . . . . Electromagnetic 205 | . 162 43 . . . Impact . | . . . . . . Slashing . | . . . . . . Piercing . | . . . . . . Highest Corruption 14 | . . . . 6 14 Average Corruption 6 | . . . . 6 6 Corruption Purged . | . . . . . . Corruption Blocked . | . . . . . . Effects 9 | . . . . 5 4 Message Errors 1 | . . . . . 1 Matter Fused 1 | . . . . . 1 Heat Flow Errors 1 | . . . . 1 . Data Loss (minor) 2 | . . . . 2 . Data Loss (major) 1 | . . . . 1 . Misfires 1 | . . . . . 1 Alerts 1 | . . . . 1 . Misdirections 1 | . . . . . 1 Overload Shots . | . . . . . . Overflow Damage . | . . . . . . Projectiles . | . . . . . . Explosions . | . . . . . . Melee . | . . . . . . Knockbacks . | . . . . . . Impact . | . . . . . . Kinetic . | . . . . . . Secondary . | . . . . . . Self-Inflicted Damage . | . . . . . . Shots . | . . . . . . Rammed . | . . . . . . Targets Rammed . | . . . . . . Kicked . | . . . . . . Crushed . | . . . . . . Highest Temperature 222 | . 18 . 7 222 44 Average Temperature 49 | . 11 . 5 77 19 Received Heat Transfer 517 | . 30 . 171 156 160 Siege Activations . | . . . . . . Robots Corrupted . | . . . . . . Combat Hostiles . | . . . . . . Parts Fried . | . . . . . . Impact Corruptions . | . . . . . . Robots Melted . | . . . . . . Combat Hostiles . | . . . . . . Parts Melted 2 | . . . . 2 . Heat Transferred 444 | . . . . 444 . Parts Sabotaged . | . . . . . . Parts Stolen . | . . . . . . Parts Stripped . | . . . . . . Power Chain Reactions . | . . . . . . Alert | -11 -10 -10 -9 -9 -9 ------- Run | Yrd Mat Min Mat Min Exi Peak Influence 360 | . 263 267 360 188 . Initial 104 | . . 102 104 78 . Average 166 | . 170 241 193 128 . Maximum Alert Level 1 | . 1 1 1 . . Low Security (%) 64 | 100 33 5 63 100 . Level 1 35 | . 66 94 36 . . Level 2 . | . . . . . . Level 3 . | . . . . . . Level 4 . | . . . . . . Level 5 . | . . . . . . High Security . | . . . . . . Max Security . | . . . . . . Squads Dispatched 3 | . 3 . . . . Investigation 1 | . 1 . . . . Extermination . | . . . . . . Reinforcement 2 | . 2 . . . . Assault . | . . . . . . Garrison . | . . . . . . Intercept . | . . . . . . Searches Triggered . | . . . . . . Construction Impeded . | . . . . . . Haulers Reinforced . | . . . . . . Active Scanning Responses . | . . . . . . Cargo Convoy Interrupts . | . . . . . . Stealth | -11 -10 -10 -9 -9 -9 --------- Run | Yrd Mat Min Mat Min Exi Distress Signals 5 | . 2 . 3 . . Communications Jammed . | . . . . . . Distress Signals . | . . . . . . Times Spotted 48 | . 14 5 16 5 8 Peak Tracking Total 9 | . 6 3 6 3 9 Tactical Retreats 4 | . 1 1 1 1 . Traps | -11 -10 -10 -9 -9 -9 ------- Run | Yrd Mat Min Mat Min Exi Traps Triggered 1 | . 1 . . . . Indirectly . | . . . . . . Trap Hack Attempts . | . . . . . . Triggered . | . . . . . . Disarmed . | . . . . . . Reprogrammed . | . . . . . . Reused . | . . . . . . Traps Extracted . | . . . . . . Installed . | . . . . . . Triggered . | . . . . . . Machines | -11 -10 -10 -9 -9 -9 ---------- Run | Yrd Mat Min Mat Min Exi Machines Disabled 2 | . . 1 . 1 . Max in Single Turn 1 | . . 1 . 1 . Machines Repaired . | . . . . . . Machines Dismantled . | . . . . . . Machines Sabotaged . | . . . . . . Overloaded Fab Kills . | . . . . . . Hacking | -11 -10 -10 -9 -9 -9 --------- Run | Yrd Mat Min Mat Min Exi Machines Accessed 5 | . 1 . 3 1 . Terminals 5 | . 1 . 3 1 . Fabricators . | . . . . . . Repair Stations . | . . . . . . Recycling Units . | . . . . . . Scanalyzers . | . . . . . . Garrison Access . | . . . . . . Total Hacks 17 | . 5 . 10 2 . Successful 7 | . 2 . 4 1 . Failed 10 | . 3 . 6 1 . Catastrophic 2 | . . . 1 1 . Database Lockouts . | . . . . . . Manual 1 | . . . . 1 . Terminals 17 | . 5 . 10 2 . Fabricators . | . . . . . . Repair Stations . | . . . . . . Recycling Units . | . . . . . . Scanalyzers . | . . . . . . Garrison Access . | . . . . . . Terminal Hacks 7 | . 2 . 4 1 . Record 1 | . . . . 1 . Maintenance Status 1 | . 1 . . . . Transport Status 1 | . . . 1 . . Reinforcement Status 1 | . . . 1 . . Assault Status 2 | . 1 . 1 . . Zone Layout 1 | . . . 1 . . Fabricator Hacks . | . . . . . . Repair Station Hacks . | . . . . . . Recycling Unit Hacks . | . . . . . . Scanalyzer . | . . . . . . Garrison Access Hacks . | . . . . . . Unauthorized Hacks . | . . . . . . Terminals . | . . . . . . Fabricators . | . . . . . . Repair Stations . | . . . . . . Recycling Units . | . . . . . . Scanalyzers . | . . . . . . Garrison Access . | . . . . . . Data Cores Recovered . | . . . . . . Used . | . . . . . . Hacking Detections 5 | . 1 . 3 1 . Full Trace Events 1 | . 1 . . . . Feedback Events . | . . . . . . Feedback Blocked . | . . . . . . Robot Schematics Acquired . | . . . . . . Robots Built . | . . . . . . Authchips . | . . . . . . Time . | . . . . . . Total Robot Build Rating . | . . . . . . Part Schematics Acquired . | . . . . . . Parts Built . | . . . . . . Authchips . | . . . . . . Time . | . . . . . . Total Part Build Rating . | . . . . . . Parts Repaired . | . . . . . . Time . | . . . . . . Parts Recycled . | . . . . . . Recycled Matter . | . . . . . . Retrieved Matter . | . . . . . . Retrieved Components . | . . . . . . Parts Scanalyzed . | . . . . . . Part Schematics Acquired . | . . . . . . Parts Damaged . | . . . . . . Bothacking | -11 -10 -10 -9 -9 -9 ------------ Run | Yrd Mat Min Mat Min Exi Used RIF Installer . | . . . . . . Robots Hacked . | . . . . . . Non-combat . | . . . . . . Combat . | . . . . . . Robot Hacks Applied . | . . . . . . Relay Couplers Released . | . . . . . . Fabnet Peak Effective % . | . . . . . . Robots Rewired . | . . . . . . Allies Hacked . | . . . . . . Hacks Repelled . | . . . . . . Allies | -11 -10 -10 -9 -9 -9 -------- Run | Yrd Mat Min Mat Min Exi Total Allies . | . . . . . . Largest Group . | . . . . . . Highest-Rated Group . | . . . . . . Highest-Rated Ally . | . . . . . . Total Orders . | . . . . . . Ally Attacks . | . . . . . . Total Damage . | . . . . . . Kills . | . . . . . . Allies Corrupted . | . . . . . . Allies Melted . | . . . . . . Intel | -11 -10 -10 -9 -9 -9 ------- Run | Yrd Mat Min Mat Min Exi Robot Analysis Total . | . . . . . . Derelict Logs Recovered 4 | . . 1 . 3 . Drone Launches . | . . . . . . Drone Recoveries . | . . . . . . Exploration | -11 -10 -10 -9 -9 -9 ------------- Run | Yrd Mat Min Mat Min Exi Turns Passed 1691 | 83 254 166 639 439 110 Spaces Moved 885 | 54 99 105 289 273 65 Core 18 | 9 . . . 9 . Treads . | . . . . . . Legs 867 | 45 99 105 289 264 65 Wheels . | . . . . . . Hover . | . . . . . . Flight . | . . . . . . Fastest Speed 50 | 50 120 120 120 120 120 Average Speed 139 | 132 159 120 157 125 120 Slowest Speed 250 | 190 190 120 190 250 120 Overloaded Moves . | . . . . . . Propulsion Burnouts . | . . . . . . Robots Hopped . | . . . . . . Cave-ins Triggered . | . . . . . . Exploration Rate (%) 25 | 4 22 32 23 51 19 Regions Visited 5 Branch Regions 3 Pre-discovered Areas 1 | . . 1 . . . Known Exits Taken . | . . . . . . Unknown Exits Taken 5 | 1 1 1 1 1 . Scrap Searched 1 | . . . . 1 . Spaces Dug . | . . . . . . Terrain Destroyed . | . . . . . . Melee . | . . . . . . Projectile . | . . . . . . AOE . | . . . . . . Terrain Rammed . | . . . . . . Walls Destroyed . | . . . . . . Machines Disabled . | . . . . . . Actions | -11 -10 -10 -9 -9 -9 --------- Run | Yrd Mat Min Mat Min Exi Total 1183 | 66 159 128 403 336 91 Wait 120 | . 34 10 51 24 1 Move 880 | 53 98 104 288 272 65 Hop . | . . . . . . Pick Up 35 | 8 6 3 8 9 1 Fast Attach . | . . . . . . Attach 20 | 5 2 1 5 7 . Detach . | . . . . . . Swap . | . . . . . . Drop 8 | . 1 1 3 3 . Fire 101 | . 18 9 48 21 5 Melee . | . . . . . . Ram 1 | . . . . . 1 Kick . | . . . . . . Crush . | . . . . . . Escape Stasis . | . . . . . . Rewire 18 | . . . . . 18 Trap . | . . . . . . Miscellaneous . | . . . . . . Route ------- -11/Scrapyard -10/Materials -10/Mines -9/Materials -9/Mines (discovered 3 exits: [*Mat] / [*Exi] / [*Zio]) -9/Exiles History --------- Turn | Location | Event 54 | -11/Scrapyard | Discovered new exit (range 13) 84 | -11/Scrapyard | Entered Materials 191 | -10/Materials | Destroyed 7 combat bots 309 | -10/Materials | Discovered new exit (range 16) 312 | -10/Materials | Build established: Mutant 338 | -10/Materials | Entered Mines 491 | -10/Mines | Discovered new exit (range 10) 492 | -10/Mines | Learned location of Mines (-8) 504 | -10/Mines | Entered Materials 504 | -9/Materials | Evolved 2 slots: Propulsion x2 1047 | -9/Materials | Discovered new exit (range 8) 1143 | -9/Materials | Entered Mines 1164 | -9/Mines | Core integrity fell below 50% 1245 | -9/Mines | A Derelict revealed a hidden shortcut to a safe place 1320 | -9/Mines | Learned 2 Materials zone layouts 1472 | -9/Mines | Learned location of 1 exit from Materials 1478 | -9/Mines | Learned location of 1 exit from Proximity Caves 1479 | -9/Mines | Discovered new exit (range 5) 1525 | -9/Mines | Deemed a non-threat by the Exiles lab entrance 1526 | -9/Mines | Discovered new exit (range 5) 1531 | -9/Mines | Build established: Scavenger-Mutant 1582 | -9/Mines | Entered Exiles 1615 | -9/Exiles | Met 8R-AWN 1642 | -9/Exiles | Met EX-HEX 1672 | -9/Exiles | Attacked by the Exiles 1688 | -9/Exiles | System corruption reached 10% 1690 | -9/Exiles | Core integrity fell below 20% 1692 | -9/Exiles | Destroyed by 8R-AWN with 8R-AWN's Boregun Last Messages --------------- 01685_ Aluminum Leg destroyed. 01685_ HV Slug penetrates Assembled Analyzer. 01685_ Lgt. Assault Rifle destroyed. 01685_ Med. Armor Plating destroyed. 01687_ Lgt. Ion Engine destroyed. 01687_ System corrupted by crushing effect (+5). 01687_ Aluminum Leg destroyed. 01687_ Penetrated by HV Slug. 01687_ Aluminum Leg destroyed. 01687_ HV Slug penetrates Assembled Analyzer. 01687_ Penetrated by HV Slug. 01687_ HV Slug penetrates Machine. 01687_ Machine disabled. 01688_ Aluminum Leg destroyed. 01689_ Penetrated by HV Slug. 01689_ HV Slug penetrates as-68612. 01689_ HV Slug penetrates as-40384. 01690_ Lgt. Assault Rifle destroyed. 01690_ System corrupted by crushing effect (+3). 01692_ Penetrated by HV Slug. Map ----- +----------------------------------------------------+ | ?????????????????????????????????????????????????? | | ?????????????????????????????????????????????????? | | ?????????????????????????????????????????????????? | | ?????????????????????????????????????????????????? | | ?????????????????????????????????????????????????? | | ?????????????????????????????????????????????????? | | ?????????????????????????????????????????????????? | | ?????????????????????????????????????????????????? | | ?????????????????????????????????????????????????? | | ?????????????????????????????????????????????????? | | ?????????????????????????????????????????????????? | | ?????????????????????????????????????????????????? | | ?????????????????????????????????????????????????? | | ?????????????????????????????????????????????????? | | ?????????????? ??????????????????????????????????? | | ??????????????" "????????????????????????????????? | | ?????????????" " ??????????????????????????????? | | ???????????? " ""?????????????????????????????? | | ??????????? a"????????????#####???????????? | | ?????????? " "#??????????##" #???????????? | | ?????????? "###???????#" #???????????? | | ????????? ""#??????##" ##??????????? | | ???????? "#????### ###????????# | | ???????? ##???# ########## | | ???????" ##?## #""""## | | ???????"" ca@### * | | ??????? aag ## * | | ??????"" a #### | | ?????? aa ""#?#"""""#### | | ????? a #"""##?#######??#### | | ????? ######??????????????### | | ?????? ##?????????????????????? | | ?????? " ##??????????????????????? | | ??????? """ ""#???????????????????????? | | ?????????" ""#" "##???????????????????????? | | ??????????????## """ "##????????????????????????? | | ???????????????#########?????????????????????????? | | ?????????????????????????????????????????????????? | | ?????????????????????????????????????????????????? | | ?????????????????????????????????????????????????? | | ?????????????????????????????????????????????????? | | ?????????????????????????????????????????????????? | | ?????????????????????????????????????????????????? | | ?????????????????????????????????????????????????? | | ?????????????????????????????????????????????????? | | ?????????????????????????????????????????????????? | | ?????????????????????????????????????????????????? | | ?????????????????????????????????????????????????? | | ?????????????????????????????????????????????????? | | ?????????????????????????????????????????????????? | +----------------------------------------------------+ Best States ------------- Heat Dissipation 28 Energy Generation 10 Energy Capacity 250 Matter Stores 400 Matter Capacity 400 Sight Range 16 Terrain Scan Density 10 Armor Coverage 225 Evasion (%) 55 Item Schematics ----------------- None Robot Schematics ------------------ None Fabricated ------------ Nothing Alien Tech Used ----------------- None Achievements -------------- None Challenges ------------ None Game ------ Seed ReinforcedGuidanceDoomcannon Manual? 0 Play Time 00:19:35 Cumulative 4.2 hours Start 2024.12.28 @ 11:26:27 End 2024.12.28 @ 12:54:00 Sessions 1 Manual Loads 0 Difficulty Rogue Special Mode None Game No. 14 Rogue 14 Adventurer 0 Explorer 0 Win Type - Total 0 Types 0/0/0/0/0/0/0/0/0 Lore% 1 Gallery% 7 Achievement% 8 Wizard Run 0 Options --------- Layout 2 ASCII 0 Keyboard 1 Movement Vi Keybinds 0 Fullscreen 2 Font 24/Swanston Map View 50x44 Zoom Use 0% Tactical HUD 1 Map Filters NONE Filters NONE Steam 1 RUN: 170b77d4-fe9d-4f2b-a925-65f2e57be82d